[Event "Titled Tuesday Blitz August 08 Early 2023"]
[White "Lewicki, Miroslaw"]
[Black "Ncatt"]
[WhiteFideId "1113380"]
[WhiteElo "2625"]
[BlackElo "2320"]
[Result "1/2-1/2"]
[Round "1"]
[TimeControl "180+1"]
[Date "2023.08.08"]
[WhiteClock "0:00:07"]
[BlackClock "0:00:39"]
[Board "180"]

1. g3 {[%clk 0:03:00]}  d5 {[%clk 0:02:57]} 2. Bg2 {[%clk 0:03:01]}  Nf6 {[%clk 0:02:56]} 3. Nf3 {[%clk 0:03:02]}  Bf5 {[%clk 0:02:55]} 4. O-O {[%clk 0:03:03]}  e6 {[%clk 0:02:53]} 5. d3 {[%clk 0:03:03]}  Nbd7 {[%clk 0:02:51]} 6. Nbd2 {[%clk 0:03:00]}  h6 {[%clk 0:02:51]} 7. b3 {[%clk 0:03:00]}  Bd6 {[%clk 0:02:48]} 8. Bb2 {[%clk 0:03:00]}  O-O {[%clk 0:02:48]} 9. Re1 {[%clk 0:03:01]}  Bh7 {[%clk 0:02:47]} 10. e4 {[%clk 0:03:01]}  dxe4 {[%clk 0:02:46]} 11. dxe4 {[%clk 0:03:02]}  e5 {[%clk 0:02:45]} 12. Nc4 {[%clk 0:03:02]}  Nxe4 {[%clk 0:02:42]} 13. Nfxe5 {[%clk 0:02:52]}  Nxe5 {[%clk 0:02:35]} 14. Bxe4 {[%clk 0:02:44]}  Nxc4 {[%clk 0:02:26]} 15. Bxh7+ {[%clk 0:02:44]}  Kxh7 {[%clk 0:02:25]} 16. Qd3+ {[%clk 0:02:44]}  Kg8 {[%clk 0:02:22]} 17. Qxc4 {[%clk 0:02:44]}  Qg5 {[%clk 0:02:19]} 18. Rad1 {[%clk 0:02:41]}  Rae8 {[%clk 0:02:18]} 19. Qd4 {[%clk 0:02:23]}  b6 {[%clk 0:02:05]} 20. Kg2 {[%clk 0:02:18]}  Bc5 {[%clk 0:02:01]} 21. Qc3 {[%clk 0:02:15]}  f6 {[%clk 0:01:55]} 22. Rxe8 {[%clk 0:01:48]}  Rxe8 {[%clk 0:01:55]} 23. Rd7 {[%clk 0:01:47]}  Qf5 {[%clk 0:01:41]} 24. Qd2 {[%clk 0:00:55]}  Qe4+ {[%clk 0:01:32]} 25. Kh3 {[%clk 0:00:49]}  Qf5+ {[%clk 0:01:13]} 26. Kh4 {[%clk 0:00:37]}  Bxf2 {[%clk 0:00:57]} 27. Qd5+ {[%clk 0:00:37]}  Qxd5 {[%clk 0:00:56]} 28. Rxd5 {[%clk 0:00:37]}  Re2 {[%clk 0:00:55]} 29. Kh5 {[%clk 0:00:35]}  Rxc2 {[%clk 0:00:44]} 30. Kg6 {[%clk 0:00:34]}  Kf8 {[%clk 0:00:44]} 31. Ba3+ {[%clk 0:00:33]}  c5 {[%clk 0:00:45]} 32. Rd7 {[%clk 0:00:28]}  Rxa2 {[%clk 0:00:43]} 33. Bc1 {[%clk 0:00:28]}  Bd4 {[%clk 0:00:39]} 34. Rxg7 {[%clk 0:00:18]}  Rxh2 {[%clk 0:00:39]} 35. Bxh6 {[%clk 0:00:18]}  Ke8 {[%clk 0:00:38]} 36. Rxa7 {[%clk 0:00:15]}  Rb2 {[%clk 0:00:39]} 37. Kf5 {[%clk 0:00:12]}  Rxb3 {[%clk 0:00:36]} 38. Ke6 {[%clk 0:00:13]}  Kd8 {[%clk 0:00:36]} 39. Rh7 {[%clk 0:00:06]}  Kc8 {[%clk 0:00:32]} 40. Bf4 {[%clk 0:00:02]}  Be5 {[%clk 0:00:32]} 41. Bxe5 {[%clk 0:00:02]}  fxe5 {[%clk 0:00:33]} 42. g4 {[%clk 0:00:03]}  Rg3 {[%clk 0:00:33]} 43. Kf5 {[%clk 0:00:03]}  e4 {[%clk 0:00:33]} 44. Kf4 {[%clk 0:00:02]}  Rg1 {[%clk 0:00:33]} 45. g5 {[%clk 0:00:02]}  e3 {[%clk 0:00:33]} 46. Kxe3 {[%clk 0:00:02]}  Rxg5 {[%clk 0:00:33]} 47. Kd3 {[%clk 0:00:02]}  Rd5+ {[%clk 0:00:33]} 48. Kc4 {[%clk 0:00:03]}  Rd6 {[%clk 0:00:33]} 49. Kb5 {[%clk 0:00:03]}  Kb8 {[%clk 0:00:34]} 50. Rg7 {[%clk 0:00:04]}  Kc8 {[%clk 0:00:34]} 51. Rh7 {[%clk 0:00:04]}  Rd7 {[%clk 0:00:34]} 52. Rh6 {[%clk 0:00:03]}  Rb7 {[%clk 0:00:34]} 53. Rh8+ {[%clk 0:00:03]}  Kc7 {[%clk 0:00:34]} 54. Rh7+ {[%clk 0:00:04]}  Kb8 {[%clk 0:00:35]} 55. Rh8+ {[%clk 0:00:05]}  Ka7 {[%clk 0:00:35]} 56. Rg8 {[%clk 0:00:02]}  Rc7 {[%clk 0:00:35]} 57. Rg4 {[%clk 0:00:01]}  Kb7 {[%clk 0:00:35]} 58. Rh4 {[%clk 0:00:02]}  Rd7 {[%clk 0:00:35]} 59. Rg4 {[%clk 0:00:02]}  Rd4 {[%clk 0:00:36]} 60. Rg7+ {[%clk 0:00:02]}  Kc8 {[%clk 0:00:36]} 61. Kxb6 {[%clk 0:00:02]}  c4 {[%clk 0:00:36]} 62. Rc7+ {[%clk 0:00:02]}  Kd8 {[%clk 0:00:36]} 63. Rc5 {[%clk 0:00:03]}  Kd7 {[%clk 0:00:36]} 64. Kb5 {[%clk 0:00:03]}  Kd6 {[%clk 0:00:36]} 65. Rc8 {[%clk 0:00:04]}  Kd5 {[%clk 0:00:36]} 66. Kb4 {[%clk 0:00:04]}  Re4 {[%clk 0:00:35]} 67. Rd8+ {[%clk 0:00:03]}  Ke5 {[%clk 0:00:35]} 68. Kc3 {[%clk 0:00:03]}  Kf4 {[%clk 0:00:35]} 69. Rf8+ {[%clk 0:00:04]}  Ke3 {[%clk 0:00:35]} 70. Rh8 {[%clk 0:00:04]}  Rf4 {[%clk 0:00:35]} 71. Rh3+ {[%clk 0:00:04]}  Ke4 {[%clk 0:00:35]} 72. Kxc4 {[%clk 0:00:03]}  Kf5+ {[%clk 0:00:36]} 73. Kc5 {[%clk 0:00:04]}  Kg4 {[%clk 0:00:36]} 74. Rh7 {[%clk 0:00:04]}  Rf5+ {[%clk 0:00:36]} 75. Kd4 {[%clk 0:00:05]}  Kg5 {[%clk 0:00:37]} 76. Ke4 {[%clk 0:00:06]}  Rf4+ {[%clk 0:00:38]} 77. Ke5 {[%clk 0:00:05]}  Rf5+ {[%clk 0:00:39]} 78. Ke4 {[%clk 0:00:06]}  Rf4+ {[%clk 0:00:39]} 79. Ke5 {[%clk 0:00:07]}  Rf5+ {[%clk 0:00:39]} 80. Ke4 {[%clk 0:00:07]} 1/2-1/2


[Site "https://www.chess.com"]

[Event "Titled Tuesday Blitz August 08 Early 2023"]
[White "LuxLinster"]
[Black "Goltsev, Dmitry"]
[BlackFideId "24176710"]
[WhiteElo "2303"]
[BlackElo "2612"]
[Result "0-1"]
[Round "1"]
[TimeControl "180+1"]
[Date "2023.08.08"]
[WhiteClock "0:00:00"]
[BlackClock "0:00:24"]
[Board "189"]

1. d4 {[%clk 0:02:59]}  Nf6 {[%clk 0:02:41]} 2. c4 {[%clk 0:02:58]}  e6 {[%clk 0:02:39]} 3. g3 {[%clk 0:02:57]}  b6 {[%clk 0:02:36]} 4. Bg2 {[%clk 0:02:57]}  d5 {[%clk 0:02:36]} 5. Nf3 {[%clk 0:02:56]}  Bb7 {[%clk 0:02:36]} 6. cxd5 {[%clk 0:02:55]}  exd5 {[%clk 0:02:36]} 7. Nc3 {[%clk 0:02:55]}  Bd6 {[%clk 0:02:35]} 8. Qa4+ {[%clk 0:02:45]}  c6 {[%clk 0:02:34]} 9. O-O {[%clk 0:02:37]}  O-O {[%clk 0:02:34]} 10. Ne5 {[%clk 0:02:37]}  Qc7 {[%clk 0:02:34]} 11. Bf4 {[%clk 0:02:11]}  Nbd7 {[%clk 0:02:33]} 12. Nxd7 {[%clk 0:01:47]}  Nxd7 {[%clk 0:02:34]} 13. Bxd6 {[%clk 0:01:40]}  Qxd6 {[%clk 0:02:35]} 14. e4 {[%clk 0:01:40]}  dxe4 {[%clk 0:02:29]} 15. Nxe4 {[%clk 0:01:41]}  Qg6 {[%clk 0:02:29]} 16. Rac1 {[%clk 0:01:34]}  Rfe8 {[%clk 0:02:28]} 17. Rfe1 {[%clk 0:01:14]}  Re6 {[%clk 0:02:17]} 18. d5 {[%clk 0:01:00]}  b5 {[%clk 0:02:05]} 19. dxe6 {[%clk 0:01:00]}  bxa4 {[%clk 0:02:05]} 20. exd7 {[%clk 0:01:01]}  h6 {[%clk 0:01:50]} 21. Nc5 {[%clk 0:00:57]}  Qd6 {[%clk 0:01:48]} 22. Red1 {[%clk 0:00:41]}  Qc7 {[%clk 0:01:44]} 23. Nxb7 {[%clk 0:00:41]}  Qxb7 {[%clk 0:01:45]} 24. d8=Q+ {[%clk 0:00:41]}  Rxd8 {[%clk 0:01:46]} 25. Rxd8+ {[%clk 0:00:41]}  Kh7 {[%clk 0:01:46]} 26. Rd2 {[%clk 0:00:30]}  Qb4 {[%clk 0:01:44]} 27. Rdc2 {[%clk 0:00:20]}  c5 {[%clk 0:01:44]} 28. a3 {[%clk 0:00:20]}  Qb3 {[%clk 0:01:43]} 29. Bf1 {[%clk 0:00:20]}  g6 {[%clk 0:01:41]} 30. Bc4 {[%clk 0:00:20]}  Qb7 {[%clk 0:01:41]} 31. Rd2 {[%clk 0:00:18]}  h5 {[%clk 0:01:35]} 32. h4 {[%clk 0:00:17]}  Kh6 {[%clk 0:01:28]} 33. Rcc2 {[%clk 0:00:14]}  f6 {[%clk 0:01:22]} 34. Rd5 {[%clk 0:00:14]}  Qb6 {[%clk 0:01:18]} 35. Bf1 {[%clk 0:00:10]}  c4 {[%clk 0:00:57]} 36. Bxc4 {[%clk 0:00:09]}  Qc6 {[%clk 0:00:56]} 37. Rdd2 {[%clk 0:00:07]}  Qe4 {[%clk 0:00:54]} 38. Bd3 {[%clk 0:00:06]}  Qe1+ {[%clk 0:00:53]} 39. Kg2 {[%clk 0:00:06]}  g5 {[%clk 0:00:50]} 40. hxg5+ {[%clk 0:00:04]}  Kxg5 {[%clk 0:00:50]} 41. Be2 {[%clk 0:00:02]}  Kg6 {[%clk 0:00:45]} 42. Bf3 {[%clk 0:00:02]}  a6 {[%clk 0:00:41]} 43. Re2 {[%clk 0:00:02]}  Qa5 {[%clk 0:00:36]} 44. Rcd2 {[%clk 0:00:03]}  h4 {[%clk 0:00:35]} 45. gxh4 {[%clk 0:00:03]}  Kh6 {[%clk 0:00:32]} 46. Rd4 {[%clk 0:00:03]}  Qf5 {[%clk 0:00:31]} 47. Rg4 {[%clk 0:00:02]}  Qd7 {[%clk 0:00:26]} 48. Rxa4 {[%clk 0:00:02]}  Qxa4 {[%clk 0:00:26]} 49. Be4 {[%clk 0:00:01]}  Qc4 {[%clk 0:00:25]} 50. Kf3 {[%clk 0:00:00]}  Qe6 {[%clk 0:00:24]} 0-1


[Site "https://www.chess.com"]

[Event "Titled Tuesday Blitz August 08 Early 2023"]
[White "Malek, Jan"]
[Black "Adury, Anant"]
[WhiteFideId "21864080"]
[BlackFideId "30964687"]
[WhiteElo "2612"]
[BlackElo "2302"]
[Result "0-1"]
[Round "1"]
[TimeControl "180+1"]
[Date "2023.08.08"]
[WhiteClock "0:01:07"]
[BlackClock "0:00:20"]
[Board "190"]

1. c4 {[%clk 0:02:58]}  e5 {[%clk 0:02:55]} 2. d3 {[%clk 0:02:54]}  Nc6 {[%clk 0:02:55]} 3. Nf3 {[%clk 0:02:50]}  Nf6 {[%clk 0:02:51]} 4. g3 {[%clk 0:02:49]}  Bb4+ {[%clk 0:02:38]} 5. Bd2 {[%clk 0:02:48]}  Bxd2+ {[%clk 0:02:36]} 6. Nbxd2 {[%clk 0:02:47]}  O-O {[%clk 0:02:37]} 7. Bg2 {[%clk 0:02:46]}  d6 {[%clk 0:02:37]} 8. O-O {[%clk 0:02:46]}  Rb8 {[%clk 0:02:36]} 9. a3 {[%clk 0:02:45]}  h6 {[%clk 0:02:32]} 10. b4 {[%clk 0:02:45]}  Be6 {[%clk 0:02:32]} 11. b5 {[%clk 0:02:40]}  Ne7 {[%clk 0:02:22]} 12. a4 {[%clk 0:02:39]}  c5 {[%clk 0:02:11]} 13. a5 {[%clk 0:02:33]}  Qd7 {[%clk 0:01:53]} 14. Nb3 {[%clk 0:02:31]}  Bh3 {[%clk 0:01:52]} 15. Re1 {[%clk 0:02:27]}  Bxg2 {[%clk 0:01:50]} 16. Kxg2 {[%clk 0:02:27]}  Nf5 {[%clk 0:01:50]} 17. e4 {[%clk 0:02:27]}  Nd4 {[%clk 0:01:49]} 18. Nfxd4 {[%clk 0:02:18]}  cxd4 {[%clk 0:01:50]} 19. a6 {[%clk 0:02:10]}  b6 {[%clk 0:01:25]} 20. h3 {[%clk 0:02:10]}  Qe7 {[%clk 0:01:22]} 21. Qf3 {[%clk 0:02:04]}  Nd7 {[%clk 0:01:21]} 22. Qg4 {[%clk 0:02:00]}  Nc5 {[%clk 0:01:21]} 23. Nxc5 {[%clk 0:02:00]}  dxc5 {[%clk 0:01:22]} 24. f4 {[%clk 0:01:59]}  f6 {[%clk 0:01:17]} 25. Rf1 {[%clk 0:01:58]}  Rbe8 {[%clk 0:01:15]} 26. fxe5 {[%clk 0:01:56]}  fxe5 {[%clk 0:01:13]} 27. h4 {[%clk 0:01:56]}  Qe6 {[%clk 0:01:08]} 28. Rxf8+ {[%clk 0:01:54]}  Kxf8 {[%clk 0:01:09]} 29. Rf1+ {[%clk 0:01:53]}  Kg8 {[%clk 0:01:09]} 30. Qh5 {[%clk 0:01:52]}  Rf8 {[%clk 0:01:07]} 31. Rxf8+ {[%clk 0:01:51]}  Kxf8 {[%clk 0:01:08]} 32. Kf3 {[%clk 0:01:44]}  Qf7+ {[%clk 0:01:07]} 33. Qf5 {[%clk 0:01:42]}  g6 {[%clk 0:01:03]} 34. Qxf7+ {[%clk 0:01:33]}  Kxf7 {[%clk 0:01:04]} 35. Kg2 {[%clk 0:01:23]}  Kf6 {[%clk 0:00:46]} 36. Kh3 {[%clk 0:01:23]}  h5 {[%clk 0:00:45]} 37. g4 {[%clk 0:01:22]}  Ke7 {[%clk 0:00:46]} 38. Kg3 {[%clk 0:01:22]}  Kf6 {[%clk 0:00:46]} 39. Kf3 {[%clk 0:01:21]}  Kg7 {[%clk 0:00:46]} 40. Kf2 {[%clk 0:01:22]}  Kh6 {[%clk 0:00:47]} 41. Kg3 {[%clk 0:01:20]}  Kh7 {[%clk 0:00:47]} 42. Kh2 {[%clk 0:01:19]}  Kg7 {[%clk 0:00:18]} 43. Kh3 {[%clk 0:01:19]}  Kh7 {[%clk 0:00:18]} 44. Kg3 {[%clk 0:01:18]}  Kg7 {[%clk 0:00:18]} 45. Kf3 {[%clk 0:01:18]}  Kf6 {[%clk 0:00:18]} 46. Kf2 {[%clk 0:01:17]}  Kg7 {[%clk 0:00:11]} 47. Kf3 {[%clk 0:01:10]}  Kh7 {[%clk 0:00:10]} 48. Kg2 {[%clk 0:01:10]}  Kh6 {[%clk 0:00:08]} 49. Kh2 {[%clk 0:01:10]}  hxg4 {[%clk 0:00:08]} 50. Kg2 {[%clk 0:01:00]}  Kh5 {[%clk 0:00:07]} 51. Kg3 {[%clk 0:01:00]}  g5 {[%clk 0:00:08]} 52. hxg5 {[%clk 0:00:58]}  Kxg5 {[%clk 0:00:09]} 53. Kg2 {[%clk 0:00:53]}  Kf4 {[%clk 0:00:10]} 54. Kf2 {[%clk 0:00:54]}  g3+ {[%clk 0:00:07]} 55. Ke2 {[%clk 0:00:54]}  g2 {[%clk 0:00:07]} 56. Kf2 {[%clk 0:00:54]}  g1=Q+ {[%clk 0:00:08]} 57. Kxg1 {[%clk 0:00:54]}  Ke3 {[%clk 0:00:09]} 58. Kg2 {[%clk 0:00:55]}  Kxd3 {[%clk 0:00:10]} 59. Kf3 {[%clk 0:00:56]}  Kxc4 {[%clk 0:00:09]} 60. Kg4 {[%clk 0:00:56]}  d3 {[%clk 0:00:09]} 61. Kf5 {[%clk 0:00:57]}  d2 {[%clk 0:00:10]} 62. Kxe5 {[%clk 0:00:58]}  d1=Q {[%clk 0:00:11]} 63. Ke6 {[%clk 0:00:58]}  Kxb5 {[%clk 0:00:11]} 64. e5 {[%clk 0:00:58]}  Kxa6 {[%clk 0:00:12]} 65. Ke7 {[%clk 0:00:58]}  Qe2 {[%clk 0:00:13]} 66. Kd6 {[%clk 0:00:58]}  Qxe5+ {[%clk 0:00:14]} 67. Kxe5 {[%clk 0:00:58]}  Kb5 {[%clk 0:00:14]} 68. Ke4 {[%clk 0:00:59]}  Kb4 {[%clk 0:00:14]} 69. Kd3 {[%clk 0:01:00]}  Kb3 {[%clk 0:00:15]} 70. Kd2 {[%clk 0:01:00]}  Kb2 {[%clk 0:00:16]} 71. Kd3 {[%clk 0:01:00]}  a5 {[%clk 0:00:17]} 72. Kc4 {[%clk 0:01:01]}  a4 {[%clk 0:00:18]} 73. Kb5 {[%clk 0:01:01]}  a3 {[%clk 0:00:19]} 74. Kxb6 {[%clk 0:01:02]}  a2 {[%clk 0:00:20]} 75. Kc6 {[%clk 0:01:03]}  a1=Q {[%clk 0:00:21]} 76. Kd5 {[%clk 0:01:03]}  c4 {[%clk 0:00:21]} 77. Kc6 {[%clk 0:01:04]}  c3 {[%clk 0:00:22]} 78. Kb5 {[%clk 0:01:05]}  c2 {[%clk 0:00:23]} 79. Kb4 {[%clk 0:01:05]}  c1=R {[%clk 0:00:24]} 80. Kb5 {[%clk 0:01:05]}  Qb1 {[%clk 0:00:21]} 81. Kb6 {[%clk 0:01:06]}  Ka1+ {[%clk 0:00:19]} 82. Ka7 {[%clk 0:01:07]}  Qa2+ {[%clk 0:00:19]} 83. Kb6 {[%clk 0:01:07]}  Qb2+ {[%clk 0:00:20]} 84. Ka6 {[%clk 0:01:08]}  Rc3 {[%clk 0:00:20]} 85. Ka5 {[%clk 0:01:07]}  Ra3# {[%clk 0:00:20]} 0-1


[Site "https://www.chess.com"]

[Event "Titled Tuesday Blitz August 08 Early 2023"]
[White "Gauravthegm"]
[Black "Khusenkhojaev, Muhammad"]
[BlackFideId "14700247"]
[WhiteElo "2301"]
[BlackElo "2611"]
[Result "1-0"]
[Round "1"]
[TimeControl "180+1"]
[Date "2023.08.08"]
[WhiteClock "0:02:25"]
[BlackClock "0:01:52"]
[Board "191"]

1. e4 {[%clk 0:03:00]}  c5 {[%clk 0:02:54]} 2. Nc3 {[%clk 0:03:00]}  d6 {[%clk 0:02:54]} 3. g3 {[%clk 0:03:00]}  g6 {[%clk 0:02:54]} 4. Bg2 {[%clk 0:03:00]}  Bg7 {[%clk 0:02:54]} 5. d3 {[%clk 0:03:00]}  Nc6 {[%clk 0:02:55]} 6. f4 {[%clk 0:03:00]}  Nf6 {[%clk 0:02:55]} 7. Nf3 {[%clk 0:03:00]}  O-O {[%clk 0:02:55]} 8. O-O {[%clk 0:03:00]}  Rb8 {[%clk 0:02:52]} 9. a4 {[%clk 0:02:59]}  Nd7 {[%clk 0:02:50]} 10. Be3 {[%clk 0:02:56]}  a6 {[%clk 0:02:47]} 11. Qc1 {[%clk 0:02:36]}  b5 {[%clk 0:02:42]} 12. axb5 {[%clk 0:02:37]}  axb5 {[%clk 0:02:41]} 13. Ne2 {[%clk 0:02:37]}  Bb7 {[%clk 0:02:37]} 14. f5 {[%clk 0:02:37]}  Ra8 {[%clk 0:02:29]} 15. Rxa8 {[%clk 0:02:35]}  Qxa8 {[%clk 0:02:24]} 16. Bh6 {[%clk 0:02:35]}  Qa2 {[%clk 0:02:14]} 17. Bxg7 {[%clk 0:02:31]}  Kxg7 {[%clk 0:02:15]} 18. Nc3 {[%clk 0:02:26]}  b4 {[%clk 0:01:52]} 19. Nxa2 {[%clk 0:02:25]} 1-0


[Site "https://www.chess.com"]

[Event "Titled Tuesday Blitz August 08 Early 2023"]
[White "Fernandez Siles, Luis"]
[Black "Domingo Nunez, Ruben"]
[WhiteFideId "2209420"]
[BlackFideId "22245570"]
[WhiteElo "2296"]
[BlackElo "2605"]
[Result "0-1"]
[Round "1"]
[TimeControl "180+1"]
[Date "2023.08.08"]
[WhiteClock "0:00:24"]
[BlackClock "0:00:31"]
[Board "193"]

1. d4 {[%clk 0:02:58]}  g6 {[%clk 0:02:58]} 2. c4 {[%clk 0:02:58]}  Bg7 {[%clk 0:02:58]} 3. Nf3 {[%clk 0:02:58]}  d6 {[%clk 0:02:52]} 4. Nc3 {[%clk 0:02:57]}  Nd7 {[%clk 0:02:52]} 5. e4 {[%clk 0:02:53]}  e5 {[%clk 0:02:53]} 6. Be2 {[%clk 0:02:51]}  Ngf6 {[%clk 0:02:53]} 7. O-O {[%clk 0:02:50]}  O-O {[%clk 0:02:53]} 8. h3 {[%clk 0:02:46]}  exd4 {[%clk 0:02:42]} 9. Nxd4 {[%clk 0:02:46]}  Re8 {[%clk 0:02:43]} 10. Bf3 {[%clk 0:02:32]}  Ne5 {[%clk 0:02:35]} 11. Be2 {[%clk 0:02:21]}  Bd7 {[%clk 0:01:56]} 12. f4 {[%clk 0:02:17]}  Nc6 {[%clk 0:01:55]} 13. Nxc6 {[%clk 0:01:51]}  Bxc6 {[%clk 0:01:56]} 14. Nd5 {[%clk 0:01:15]}  Nxe4 {[%clk 0:01:55]} 15. f5 {[%clk 0:01:13]}  Ng3 {[%clk 0:01:53]} 16. Rf2 {[%clk 0:01:02]}  Bxd5 {[%clk 0:00:51]} 17. cxd5 {[%clk 0:00:59]}  Bd4 {[%clk 0:00:50]} 18. Qxd4 {[%clk 0:00:57]}  Nxe2+ {[%clk 0:00:51]} 19. Rxe2 {[%clk 0:00:57]}  Rxe2 {[%clk 0:00:51]} 20. Bh6 {[%clk 0:00:56]}  f6 {[%clk 0:00:52]} 21. fxg6 {[%clk 0:00:54]}  hxg6 {[%clk 0:00:52]} 22. Qd3 {[%clk 0:00:54]}  Qe8 {[%clk 0:00:51]} 23. Rf1 {[%clk 0:00:43]}  Re1 {[%clk 0:00:50]} 24. Rxe1 {[%clk 0:00:38]}  Qxe1+ {[%clk 0:00:50]} 25. Kh2 {[%clk 0:00:39]}  Qe5+ {[%clk 0:00:51]} 26. g3 {[%clk 0:00:39]}  Qxb2+ {[%clk 0:00:45]} 27. Kg1 {[%clk 0:00:37]}  Kf7 {[%clk 0:00:38]} 28. Qc4 {[%clk 0:00:24]}  Re8 {[%clk 0:00:31]} 0-1


[Site "https://www.chess.com"]

[Event "Titled Tuesday Blitz August 08 Early 2023"]
[White "Bilan, Danila"]
[Black "Makhmudov, Shukhrat"]
[WhiteFideId "24161918"]
[BlackFideId "14200775"]
[WhiteElo "2603"]
[BlackElo "2296"]
[Result "1-0"]
[Round "1"]
[TimeControl "180+1"]
[Date "2023.08.08"]
[WhiteClock "0:00:18"]
[BlackClock "0:01:05"]
[Board "194"]

1. d4 {[%clk 0:03:00]}  Nf6 {[%clk 0:02:59]} 2. Nf3 {[%clk 0:03:00]}  d5 {[%clk 0:02:59]} 3. c4 {[%clk 0:03:00]}  e6 {[%clk 0:03:00]} 4. Nc3 {[%clk 0:03:01]}  Bb4 {[%clk 0:03:00]} 5. Qb3 {[%clk 0:03:00]}  Nc6 {[%clk 0:02:59]} 6. a3 {[%clk 0:03:00]}  dxc4 {[%clk 0:02:55]} 7. Qxc4 {[%clk 0:02:59]}  Bd6 {[%clk 0:02:53]} 8. Bg5 {[%clk 0:02:57]}  h6 {[%clk 0:02:52]} 9. Bh4 {[%clk 0:02:57]}  Be7 {[%clk 0:02:52]} 10. e3 {[%clk 0:02:52]}  Nd5 {[%clk 0:02:50]} 11. Bg3 {[%clk 0:02:46]}  Nxc3 {[%clk 0:02:49]} 12. Qxc3 {[%clk 0:02:41]}  Bd6 {[%clk 0:02:49]} 13. Bb5 {[%clk 0:02:38]}  Bd7 {[%clk 0:02:49]} 14. Rc1 {[%clk 0:02:33]}  O-O {[%clk 0:02:48]} 15. O-O {[%clk 0:02:32]}  Ne7 {[%clk 0:02:47]} 16. Bd3 {[%clk 0:01:57]}  Nd5 {[%clk 0:02:40]} 17. Qb3 {[%clk 0:01:50]}  Nb6 {[%clk 0:02:38]} 18. Ne5 {[%clk 0:01:43]}  Ba4 {[%clk 0:02:35]} 19. Qc3 {[%clk 0:01:27]}  Rc8 {[%clk 0:02:33]} 20. Qa5 {[%clk 0:01:13]}  a6 {[%clk 0:02:31]} 21. Qd2 {[%clk 0:00:58]}  Bb3 {[%clk 0:02:28]} 22. Qc3 {[%clk 0:00:52]}  Ba4 {[%clk 0:02:21]} 23. b3 {[%clk 0:00:52]}  Be8 {[%clk 0:02:19]} 24. b4 {[%clk 0:00:48]}  Nd5 {[%clk 0:02:17]} 25. Qb2 {[%clk 0:00:45]}  Ba4 {[%clk 0:02:16]} 26. Bc2 {[%clk 0:00:45]}  Nb6 {[%clk 0:02:13]} 27. Bxa4 {[%clk 0:00:42]}  Nxa4 {[%clk 0:02:13]} 28. Qb3 {[%clk 0:00:42]}  Qe8 {[%clk 0:02:11]} 29. Rc2 {[%clk 0:00:41]}  Nb6 {[%clk 0:02:08]} 30. Rfc1 {[%clk 0:00:40]}  c6 {[%clk 0:02:06]} 31. a4 {[%clk 0:00:26]}  Nd5 {[%clk 0:02:02]} 32. b5 {[%clk 0:00:23]}  axb5 {[%clk 0:01:51]} 33. axb5 {[%clk 0:00:24]}  Bxe5 {[%clk 0:01:25]} 34. Bxe5 {[%clk 0:00:25]}  Qd7 {[%clk 0:01:20]} 35. bxc6 {[%clk 0:00:24]}  bxc6 {[%clk 0:01:20]} 36. h3 {[%clk 0:00:25]}  f6 {[%clk 0:01:19]} 37. Bg3 {[%clk 0:00:25]}  Kh8 {[%clk 0:01:19]} 38. Qa4 {[%clk 0:00:23]}  Rc7 {[%clk 0:01:14]} 39. Bxc7 {[%clk 0:00:22]}  Qxc7 {[%clk 0:01:14]} 40. Qxc6 {[%clk 0:00:21]}  Qe7 {[%clk 0:01:14]} 41. Qa6 {[%clk 0:00:20]}  f5 {[%clk 0:01:12]} 42. Rc8 {[%clk 0:00:19]}  f4 {[%clk 0:01:12]} 43. Rxf8+ {[%clk 0:00:19]}  Qxf8 {[%clk 0:01:05]} 44. Rc8 {[%clk 0:00:18]} 1-0


[Site "https://www.chess.com"]

[Event "Titled Tuesday Blitz August 08 Early 2023"]
[White "rionelG"]
[Black "NovoselovRoman"]
[WhiteElo "2290"]
[BlackElo "2603"]
[Result "0-1"]
[Round "1"]
[TimeControl "180+1"]
[Date "2023.08.08"]
[WhiteClock "0:00:00"]
[BlackClock "0:00:04"]
[Board "195"]

1. e4 {[%clk 0:02:58]}  c6 {[%clk 0:02:58]} 2. d4 {[%clk 0:02:57]}  d5 {[%clk 0:02:59]} 3. e5 {[%clk 0:02:57]}  Bf5 {[%clk 0:02:58]} 4. Nf3 {[%clk 0:02:57]}  h6 {[%clk 0:02:55]} 5. Be2 {[%clk 0:02:56]}  e6 {[%clk 0:02:55]} 6. O-O {[%clk 0:02:55]}  c5 {[%clk 0:02:44]} 7. Be3 {[%clk 0:02:50]}  Qb6 {[%clk 0:02:29]} 8. Nc3 {[%clk 0:02:33]}  Qxb2 {[%clk 0:02:10]} 9. Qb1 {[%clk 0:01:59]}  Qxb1 {[%clk 0:01:56]} 10. Raxb1 {[%clk 0:01:47]}  b6 {[%clk 0:01:35]} 11. dxc5 {[%clk 0:00:58]}  bxc5 {[%clk 0:01:35]} 12. Rb7 {[%clk 0:00:58]}  a6 {[%clk 0:01:07]} 13. Na4 {[%clk 0:00:39]}  Nd7 {[%clk 0:00:57]} 14. c4 {[%clk 0:00:18]}  d4 {[%clk 0:00:50]} 15. Bf4 {[%clk 0:00:18]}  g5 {[%clk 0:00:48]} 16. Bg3 {[%clk 0:00:18]}  Ne7 {[%clk 0:00:33]} 17. Nd2 {[%clk 0:00:10]}  Ng6 {[%clk 0:00:16]} 18. Nb6 {[%clk 0:00:08]}  Nxb6 {[%clk 0:00:15]} 19. Rxb6 {[%clk 0:00:09]}  Be7 {[%clk 0:00:14]} 20. Bf3 {[%clk 0:00:09]}  Rd8 {[%clk 0:00:09]} 21. Rxa6 {[%clk 0:00:09]}  O-O {[%clk 0:00:09]} 22. Ra7 {[%clk 0:00:07]}  Rfe8 {[%clk 0:00:08]} 23. Ne4 {[%clk 0:00:05]}  Bxe4 {[%clk 0:00:03]} 24. Bxe4 {[%clk 0:00:05]}  Nf8 {[%clk 0:00:03]} 25. Rb1 {[%clk 0:00:05]}  Rd7 {[%clk 0:00:02]} 26. Rxd7 {[%clk 0:00:02]}  Nxd7 {[%clk 0:00:03]} 27. Bc6 {[%clk 0:00:03]}  Rd8 {[%clk 0:00:04]} 28. Rb7 {[%clk 0:00:02]}  Nb8 {[%clk 0:00:04]} 29. Bb5 {[%clk 0:00:02]}  Bf8 {[%clk 0:00:04]} 30. Rb6 {[%clk 0:00:00]}  d3 {[%clk 0:00:04]} 0-1


[Site "https://www.chess.com"]